bitfinex/quotes_BTCUSD_20220405
["timestamp","ask_amount","ask_price","bid_price","bid_amount"]
[1649168564221,0.0002607,45971.0,45963.0,0.30828488]
[1649168564327,0.2555387,45974.0,45967.0,0.2178518]
[1649168564429,0.2555387,45974.0,45962.0,0.30828488]
[1649168564529,0.2555387,45974.0,45961.0,0.19997548]
[1649168564619,0.2555387,45974.0,45961.0,0.09997548]
[1649168564921,0.2555387,45974.0,45964.0,0.41020702]
[1649168565071,0.2555387,45974.0,45961.0,0.09997548]
[1649168565173,0.2555387,45974.0,45971.0,0.00127477]
[1649168565621,0.31418722,45975.0,45971.0,0.00127477]
[1649168565958,0.31392613,45975.0,45971.0,0.00127477]
[1649168566257,0.31418725,45975.0,45971.0,0.00127477]
[1649168566557,0.23370019,45975.0,45971.0,0.00127477]
[1649168566658,0.00026112,45975.0,45962.0,0.10588704]
[1649168566761,0.00026112,45975.0,45963.0,0.108735]
[1649168567159,0.00026112,45975.0,45964.0,0.324242]
[1649168567258,0.30828488,45983.0,45965.0,0.6575]
[1649168567359,0.5747,45984.0,45965.0,0.6575]
[1649168567360,0.5747,45984.0,45965.0,0.7575]
[1649168567560,0.0005144,45975.0,45965.0,0.7575]
[1649168567763,0.0001534,45975.0,45965.0,0.7575]
[1649168567862,0.0001534,45975.0,45971.0,0.28724557]
[1649168567960,0.0001534,45975.0,45972.0,0.054359]
[1649168568263,0.5747,45984.0,45972.0,0.054359]
[1649168568360,0.16020342,45987.0,45972.0,0.054359]
[1649168568462,0.31066614,45986.0,45972.0,0.054359]
[1649168568561,0.00017431,45974.0,45972.0,0.05443379]
[1649168568715,0.31066614,45986.0,45972.0,0.15433379]
[1649168568812,0.31066614,45991.0,45972.0,0.15433379]
[1649168569063,0.98319941,45992.0,45979.0,0.34155242]
[1649168569161,0.1,45992.0,45974.0,0.054361]
[1649168569361,0.29088295,45985.0,45975.0,0.6575]
[1649168569462,0.29088295,45985.0,45977.0,0.108699]
[1649168569716,0.30802325,45978.0,45977.0,0.108699]
[1649168570322,0.0002608,45982.0,45977.0,0.108699]
[1649168570821,0.00017592,45983.0,45977.0,0.108699]
[1649168571072,0.0002608,45982.0,45977.0,0.108699]
[1649168571373,0.25655535,45981.0,45977.0,0.108699]
[1649168572171,0.00014597,45978.0,45977.0,0.108699]
[1649168572274,0.25707,45981.0,45976.0,0.108706]
[1649168572825,0.52472447,45981.0,45979.0,0.0999]
[1649168572925,0.52472447,45981.0,45980.0,0.054355]
[1649168572926,0.00051465,45981.0,45980.0,0.054355]
[1649168573228,0.01,45994.0,45980.0,0.054355]
[1649168573456,0.01,45994.0,45976.0,0.108706]
[1649168573561,0.00051464,45983.0,45976.0,0.108706]
[1649168573859,0.23383238,45980.0,45972.0,7.479e-05]
[1649168573957,0.00051464,45983.0,45972.0,7.479e-05]
[1649168574209,0.00051464,45983.0,45981.0,0.0999]
[1649168574311,0.20218911,45978.0,45970.0,0.00051479]
[1649168574406,0.20218911,45978.0,45976.0,1.0]
[1649168574807,0.31854484,45977.0,45976.0,1.0]
[1649168575012,0.60179083,45977.0,45976.0,1.0]
[1649168575257,0.31854484,45977.0,45976.0,1.0]
[1649168575759,0.31854484,45977.0,45976.0,1.05]
[1649168576059,0.20218911,45978.0,45976.0,1.05]
[1649168576261,0.20218911,45978.0,45976.0,1.3049803]
[1649168576459,0.20218911,45978.0,45976.0,1.05]
[1649168577012,0.20218911,45978.0,45976.0,1.1]
[1649168577628,0.20099761,45978.0,45976.0,1.1]
[1649168578128,0.20099761,45978.0,45977.0,7.491e-05]
[1649168578279,0.20099761,45978.0,45977.0,0.00172222]
[1649168579684,0.20099761,45978.0,45977.0,0.32388554]
[1649168579785,0.20099761,45978.0,45977.0,0.00172222]
[1649168579886,0.20099761,45978.0,45977.0,1.05607922]
[1649168580292,0.20114472,45978.0,45977.0,1.00172222]
[1649168580695,0.5895,45992.0,45979.0,0.00030833]
[1649168580877,0.01,45994.0,45978.0,1.85]
[1649168580878,0.01,45994.0,45987.0,0.31467588]
[1649168580972,0.01,45994.0,45982.0,0.31393233]
[1649168581223,0.01,45994.0,45982.0,0.05]
[1649168581518,0.01,45994.0,45981.0,0.30462707]
[1649168581620,0.01,45994.0,45981.0,0.35462707]
[1649168581719,0.01,45994.0,45983.0,0.24841694]
[1649168581821,0.01,45994.0,45983.0,0.29841694]
[1649168582123,0.00047937,45990.0,45983.0,0.29841694]
[1649168582222,0.00047937,45990.0,45985.0,0.054345]
[1649168582522,0.00047937,45990.0,45988.0,0.24815551]
[1649168582722,0.00047937,45990.0,45988.0,0.39805551]
[1649168583023,0.01,45994.0,45988.0,0.39805551]
[1649168583221,0.01,45994.0,45988.0,0.29815551]
[1649168583322,0.00047937,45991.0,45988.0,0.39815551]
[1649168583522,0.00047937,45991.0,45990.0,0.26952768]
[1649168583726,0.00047937,45991.0,45990.0,0.58347336]
[1649168583824,0.00047937,45991.0,45990.0,0.59447037]
[1649168583922,0.00047937,45991.0,45990.0,0.01099701]
[1649168584022,0.00047937,45991.0,45990.0,0.33523901]
[1649168584123,0.01,45994.0,45990.0,0.33523901]
[1649168584224,0.01,45994.0,45990.0,0.324242]
[1649168584325,0.01,45994.0,45989.0,0.0999]
[1649168584526,0.00427672,45994.0,45990.0,0.30987192]
[1649168584669,0.00427672,45994.0,45990.0,0.45386501]
[1649168584819,0.00427672,45994.0,45990.0,0.31438484]
[1649168585120,0.00427672,45994.0,45990.0,0.31248484]
[1649168585221,0.00427672,45994.0,45990.0,0.41248484]
[1649168585323,0.00427672,45994.0,45991.0,0.324242]
[1649168585420,0.00427672,45994.0,45990.0,0.41248484]
[1649168585521,0.00427672,45994.0,45991.0,0.324242]
[1649168585620,0.55857672,46008.0,45990.0,0.41248484]
[1649168586023,0.55857672,46008.0,46002.0,0.0999]
[1649168586126,0.01,46009.0,46002.0,0.0999]
[1649168586333,0.01,46009.0,46003.0,0.05]
[1649168586528,0.01,46009.0,46003.0,0.048467]
[1649168586725,0.30528743,46008.0,46003.0,0.048467]
[1649168587427,0.30528743,46008.0,46004.0,0.054327]
[1649168587727,0.30028743,46008.0,46003.0,0.25109231]
[1649168587828,0.30028743,46008.0,46005.0,0.0999]
[1649168588129,0.30028743,46008.0,46005.0,0.1499]
[1649168588583,0.30028743,46008.0,46005.0,0.1499747]
[1649168588687,0.30028743,46008.0,46005.0,0.15134298]
[1649168588840,0.01,46009.0,46005.0,0.20566798]
[1649168588934,0.01,46009.0,46005.0,0.10576798]
[1649168589134,0.01,46009.0,46005.0,0.05576798]
[1649168589234,0.01026063,46009.0,46005.0,0.10576798]
[1649168589335,0.01026063,46009.0,46008.0,0.0999]
[1649168589436,0.01026063,46009.0,46008.0,0.1499]
[1649168589636,0.01026063,46009.0,46008.0,0.56260579]
[1649168589735,0.01026063,46009.0,46008.0,0.1499]
[1649168590038,0.01026063,46009.0,46008.0,0.204222]
[1649168590141,0.01,46009.0,46008.0,0.1499]
[1649168590942,0.01,46009.0,46008.0,0.05]
[1649168591041,0.01,46009.0,46006.0,0.2578903]
[1649168591147,0.01,46009.0,46006.0,0.9153903]
[1649168591241,0.01,46009.0,46006.0,0.3078903]
[1649168591442,0.01,46009.0,46008.0,1.0]
[1649168591690,0.01,46009.0,46008.0,1.05]
[1649168591894,0.01,46009.0,46008.0,1.51798304]
[1649168591994,0.01,46009.0,46008.0,2.17548304]
[1649168592125,0.00104238,46017.0,46008.0,2.17548304]
[1649168592126,0.00104238,46017.0,46009.0,0.9]
[1649168592222,0.00104238,46017.0,46009.0,2.49086705]
[1649168592321,0.01,46024.0,46012.0,0.324242]
[1649168592420,0.01,46024.0,46014.0,0.324242]
[1649168592521,0.01,46024.0,46013.0,0.05]
[1649168592623,0.01,46024.0,46014.0,0.324242]
[1649168592721,0.01,46024.0,46015.0,0.324242]
[1649168592824,0.01,46024.0,46015.0,0.524242]
[1649168592825,0.26959079,46022.0,46015.0,0.524242]
[1649168593027,0.01,46024.0,46015.0,0.524242]
[1649168593124,0.01,46024.0,46017.0,0.24369404]
[1649168593222,0.01,46024.0,46015.0,0.1]
[1649168593322,0.01,46024.0,46017.0,0.05]
[1649168593422,0.01,46024.0,46018.0,0.324242]
[1649168593522,0.01,46024.0,46015.0,0.1]
[1649168593621,0.01,46024.0,46017.0,0.31438484]
[1649168593722,0.01,46024.0,46018.0,1.91510905]
[1649168593824,0.01,46024.0,46017.0,2.00525189]
[1649168593928,0.01,46024.0,46017.0,1.69086705]
[1649168594023,0.01,46024.0,46017.0,0.1]
[1649168594124,0.00025946,46022.0,46018.0,0.324242]
[1649168594273,0.00025946,46022.0,46021.0,0.25638628]
[1649168594422,0.00025946,46022.0,46021.0,0.63062828]
[1649168594523,0.00025946,46022.0,46021.0,0.68062828]
[1649168594623,0.00025946,46022.0,46021.0,0.67077112]
[1649168595025,0.01,46024.0,46021.0,0.67077112]
[1649168595323,0.01025946,46024.0,46021.0,0.87936312]
[1649168595424,0.01025946,46024.0,46022.0,0.424142]
[1649168595425,0.00525946,46024.0,46022.0,0.424142]
[1649168595524,0.00525946,46024.0,46023.0,0.36438484]
[1649168595772,0.00525946,46024.0,46023.0,0.46438484]
[1649168595903,0.27766578,46030.0,46023.0,1.12188484]
[1649168596103,0.27766578,46030.0,46023.0,0.46438484]
[1649168596201,0.27766578,46030.0,46024.0,0.6575]
[1649168596302,0.27766578,46030.0,46025.0,0.981742]
[1649168596407,0.27766578,46030.0,46026.0,0.31438484]
[1649168596508,0.27766578,46030.0,46027.0,0.324242]
[1649168596606,0.27766578,46030.0,46027.0,0.424242]
[1649168596703,0.27766578,46030.0,46027.0,0.1]
[1649168596810,0.27766578,46030.0,46028.0,0.05]
[1649168596913,0.27766578,46030.0,46029.0,0.05]
[1649168597010,0.05,46027.0,46026.0,0.0999]
[1649168597407,0.05,46027.0,46020.0,0.25461067]
[1649168597508,0.045,46027.0,46020.0,0.25461067]
[1649168597855,0.045,46027.0,46020.0,0.56899551]
[1649168598208,0.045,46027.0,46022.0,0.6575]
[1649168598606,0.045,46027.0,46023.0,0.324242]
[1649168598806,0.045,46027.0,46023.0,0.41438484]
[1649168598910,0.045,46027.0,46024.0,0.39108287]
[1649168599064,0.0452592,46027.0,46024.0,0.39108287]
[1649168599157,0.0452592,46027.0,46025.0,0.6575]
[1649168599260,0.0452592,46027.0,46025.0,0.5]
[1649168599636,0.0452592,46027.0,46026.0,0.05]
[1649168599879,0.045,46027.0,46026.0,0.05]
[1649168599977,0.045,46027.0,46026.0,0.374242]
[1649168600079,0.045,46027.0,46026.0,0.05]
[1649168600176,0.045,46027.0,46026.0,0.374242]
[1649168600279,0.045,46027.0,46026.0,0.65448592]
[1649168600377,0.045,46027.0,46026.0,0.33024392]
[1649168600478,0.045,46027.0,46026.0,0.65448592]
[1649168600577,0.045,46027.0,46026.0,0.43014392]
[1649168600779,0.045,46027.0,46026.0,0.80438592]
[1649168600880,0.045,46027.0,46026.0,1.30438592]
[1649168601031,0.045,46027.0,46026.0,1.31306592]
[1649168601330,0.045,46027.0,46026.0,1.41296592]
[1649168601431,0.045,46027.0,46026.0,1.08872392]
[1649168601633,0.045,46027.0,46026.0,1.08372392]
[1649168601729,0.045,46027.0,46026.0,1.47515457]
[1649168601831,0.045,46027.0,46026.0,1.08372392]
[1649168601932,0.045,46027.0,46026.0,1.40796592]
[1649168602031,0.045,46027.0,46026.0,1.08372392]
[1649168602129,0.045,46027.0,46026.0,1.18372392]
[1649168602231,0.045,46027.0,46026.0,0.90348]
[1649168602335,0.045,46027.0,46026.0,0.80348]
[1649168602435,0.045,46027.0,46026.0,0.5999]
[1649168602538,0.04506648,46027.0,46026.0,0.5999]
[1649168603187,0.04506648,46027.0,46026.0,0.5]
[1649168603972,0.04506648,46027.0,46023.0,0.00158158]
[1649168604370,0.04506648,46027.0,46023.0,0.00151083]
[1649168604371,0.04514387,46027.0,46023.0,0.00151083]
[1649168604472,0.31302791,46026.0,46023.0,0.00151083]
[1649168604973,0.31302791,46026.0,46023.0,0.50151083]
[1649168605174,0.31302791,46026.0,46025.0,0.05]
[1649168605475,0.31302791,46026.0,46023.0,0.50151083]
[1649168605574,0.31302791,46026.0,46023.0,0.5]
[1649168605673,0.29775978,46025.0,46023.0,0.5]
[1649168605973,0.29775978,46025.0,46022.0,7.079e-05]
[1649168606174,0.29752172,46025.0,46022.0,7.079e-05]
[1649168606679,0.30920892,46024.0,46022.0,7.079e-05]
[1649168607254,0.40920892,46024.0,46022.0,7.079e-05]
[1649168607406,0.30920892,46023.0,46022.0,7.079e-05]
[1649168607607,0.40920892,46023.0,46022.0,7.079e-05]
[1649168608121,0.00014158,46021.0,46016.0,0.00049703]
[1649168608405,0.00014158,46021.0,46009.0,0.5999]
[1649168608554,0.30631655,46013.0,46009.0,0.5999]
[1649168608967,0.00014158,46021.0,46009.0,0.5999]
[1649168608968,0.00014158,46021.0,46010.0,0.32125667]
[1649168609062,0.00014158,46021.0,46009.0,0.90910892]
[1649168609163,0.22621545,46019.0,46009.0,0.0999]
[1649168609460,0.22621545,46019.0,46009.0,0.40910892]
[1649168609763,0.22621545,46019.0,46012.0,0.00047859]
[1649168610065,0.00014158,46021.0,46012.0,0.00047859]
[1649168610563,6.087e-05,46020.0,46012.0,0.00047859]
[1649168610873,6.087e-05,46020.0,46011.0,0.6]
[1649168610971,6.087e-05,46020.0,46014.0,0.00047858]
[1649168611070,6.087e-05,46020.0,46015.0,0.22578114]
[1649168611270,6.087e-05,46020.0,46015.0,0.32578114]
[1649168611776,6.087e-05,46020.0,46016.0,0.5]
[1649168612122,6.087e-05,46020.0,46016.0,0.80518451]
[1649168612221,6.087e-05,46020.0,46016.0,0.80566433]
[1649168612324,0.00019403,46020.0,46016.0,0.80566433]
[1649168613176,0.00019403,46020.0,46017.0,0.00150789]
[1649168613875,0.00019403,46020.0,46017.0,0.10150789]
[1649168613981,0.00019403,46020.0,46017.0,0.41071681]
[1649168614173,0.00019403,46020.0,46018.0,0.5]
[1649168614377,0.00019403,46020.0,46019.0,0.324242]
[1649168614476,0.00019403,46020.0,46019.0,0.05]
[1649168614621,0.00019403,46020.0,46018.0,0.55]
[1649168614622,0.00019403,46020.0,46018.0,0.6499]
[1649168614775,0.00019403,46020.0,46019.0,0.05]
[1649168615321,0.00019403,46020.0,46019.0,0.55]
[1649168616779,0.00019403,46020.0,46019.0,0.72]
[1649168616932,0.00019403,46020.0,46019.0,1.35345092]
[1649168617077,0.00019403,46020.0,46019.0,1.45502436]
[1649168617175,0.00019403,46020.0,46019.0,1.27282755]
[1649168617283,0.00019403,46020.0,46019.0,3.8454366]
[1649168617375,0.00019403,46020.0,46019.0,2.25456955]
[1649168618616,0.00019403,46020.0,46019.0,1.94536063]
[1649168619870,0.00019403,46020.0,46019.0,1.28786063]
[1649168620170,0.00019403,46020.0,46019.0,0.96361863]
[1649168620371,0.00019403,46020.0,46019.0,0.82157344]
[1649168620669,0.00019403,46020.0,46019.0,0.82151045]
[1649168620772,0.00019403,46020.0,46019.0,1.14575245]
[1649168620871,0.00019403,46020.0,46019.0,1.144242]
[1649168620972,0.00019403,46020.0,46019.0,1.841742]
[1649168622547,0.0325647,46020.0,46019.0,1.841742]
[1649168622648,0.0325647,46020.0,46019.0,2.00127172]
[1649168623249,0.0325647,46020.0,46019.0,2.32423969]
[1649168623748,0.0325647,46020.0,46019.0,1.184242]
[1649168624253,0.0325647,46020.0,46019.0,0.71]
[1649168624552,0.0325647,46020.0,46019.0,0.67]
[1649168624651,0.0325647,46020.0,46019.0,1.04978045]
[1649168624851,0.0325647,46020.0,46019.0,0.994242]
[1649168625251,0.0325647,46020.0,46019.0,1.651742]
[1649168625353,0.0325647,46020.0,46019.0,0.994242]
[1649168625554,0.0325647,46020.0,46019.0,1.094242]
[1649168625653,0.0325647,46020.0,46019.0,1.194242]
[1649168625897,0.0325647,46020.0,46019.0,1.69272946]
[1649168626282,0.0325647,46020.0,46019.0,1.85560646]
[1649168627087,0.0325647,46020.0,46019.0,1.844619]
[1649168627189,0.0325647,46020.0,46019.0,0.71169544]
[1649168627292,0.34341814,46020.0,46019.0,0.07457644]
[1649168627593,0.0325647,46020.0,46018.0,0.10141991]
[1649168628091,0.3327114,46020.0,46018.0,0.10141991]
[1649168628189,0.0325647,46020.0,46018.0,0.10141991]
[1649168628290,0.0325647,46020.0,46019.0,1.0]
[1649168628840,0.03250383,46020.0,46019.0,1.0]
[1649168629138,0.03250383,46020.0,46019.0,1.1]
[1649168629237,0.29651537,46020.0,46019.0,1.1]
[1649168629338,0.03250383,46020.0,46019.0,1.1]
[1649168630225,0.03250383,46020.0,46019.0,1.6]
[1649168630776,0.00048326,46026.0,46019.0,1.6]
[1649168630878,7.073e-05,46020.0,46019.0,1.6]
[1649168631380,7.073e-05,46020.0,46019.0,2.6]
[1649168631731,7.073e-05,46020.0,46019.0,2.1]
[1649168632784,0.00013463,46020.0,46019.0,2.1]
[1649168633180,0.00052695,46026.0,46019.0,2.1]
[1649168633428,0.2399478,46023.0,46019.0,2.1]
[1649168633626,0.2399478,46023.0,46021.0,0.0999]
[1649168633727,0.1998,46020.0,46019.0,2.1]
[1649168633930,0.1998,46020.0,46019.0,1.9799]
[1649168634029,0.70919352,46020.0,46019.0,0.328248]
[1649168634133,0.95,46019.0,46018.0,0.00108938]
[1649168634230,1.25939352,46019.0,46018.0,0.00108938]
[1649168634330,1.35939352,46019.0,46018.0,0.00108938]
[1649168634430,0.65,46018.0,46008.0,1.5]
[1649168634530,0.2,46015.0,46008.0,1.5]
[1649168634880,0.25846876,46014.0,46008.0,1.5]
[1649168634982,0.31280876,46014.0,46008.0,1.5]
[1649168635083,0.31280876,46014.0,46008.0,1.0]
[1649168635184,0.41280876,46014.0,46008.0,1.0]
[1649168635779,0.34939352,46013.0,46008.0,1.0]
[1649168635980,0.44939352,46013.0,46008.0,1.0]
[1649168636284,0.194342,46013.0,46008.0,1.0]
[1649168636383,0.04,46013.0,46008.0,1.0]
[1649168636682,0.19999648,46020.0,46008.0,1.0]
[1649168636881,0.00019595,46014.0,46008.0,1.0]
[1649168637339,0.21765519,46029.0,46028.0,23.43031109]
[1649168637440,0.21765519,46029.0,46028.0,22.71703545]
[1649168637538,0.21765519,46030.0,46028.0,22.81703545]
[1649168637837,0.17455784,46029.0,46028.0,22.81703545]
[1649168638245,0.00193085,46030.0,46028.0,22.81703545]
[1649168638440,0.00193085,46030.0,46028.0,23.10375778]
[1649168638639,0.00193085,46030.0,46029.0,0.29969255]
[1649168638740,0.00099968,46030.0,46029.0,0.29969255]
[1649168638889,0.00099968,46030.0,46028.0,23.10375778]
[1649168638990,0.17455784,46035.0,46028.0,23.10375778]
[1649168639695,0.17455784,46035.0,46028.0,22.81703545]
[1649168639895,0.17455784,46035.0,46030.0,0.30989048]
[1649168639993,0.00099968,46031.0,46030.0,0.30989048]
[1649168640093,0.00099968,46031.0,46030.0,0.05]
[1649168640198,0.00099968,46031.0,46028.0,22.81703545]
[1649168640345,0.31835102,46033.0,46028.0,22.81703545]
[1649168640445,0.2,46032.0,46028.0,22.81703545]
[1649168640545,0.15526049,46031.0,46028.0,22.71703545]
[1649168640647,0.31847436,46030.0,46028.0,22.71703545]
[1649168640745,0.17455784,46029.0,46028.0,22.71703545]
[1649168640892,0.37455784,46029.0,46028.0,22.71703545]
[1649168640995,0.24,46029.0,46028.0,22.71703545]
[1649168641191,0.70238763,46029.0,46028.0,22.71703545]
[1649168641293,0.69738763,46029.0,46028.0,22.71703545]
[1649168641397,0.79738763,46029.0,46028.0,22.71703545]
[1649168641743,0.90604163,46029.0,46028.0,22.71703545]
[1649168642047,0.90604163,46029.0,46018.0,0.4829974]
[1649168642144,0.17624386,46027.0,46018.0,0.4829974]
[1649168642249,0.054327,46024.0,46008.0,1.505]
[1649168642346,0.054327,46024.0,46008.0,0.505]
[1649168642347,0.32011689,46023.0,46008.0,0.505]
[1649168642748,0.32011689,46023.0,46009.0,0.05]
[1649168642849,0.32011689,46023.0,46015.0,0.0663]
[1649168643250,0.28057191,46016.0,46015.0,0.0663]
[1649168643450,0.28057191,46016.0,46015.0,0.0185]
[1649168643552,0.83392293,46016.0,46015.0,0.0103]
[1649168643650,0.83392293,46016.0,46003.0,0.5]
[1649168643651,0.51557191,46016.0,46003.0,0.5]
[1649168643752,0.80012024,46016.0,46003.0,0.5]
[1649168643854,0.61557191,46016.0,46003.0,0.5]
[1649168644351,0.22032859,46005.0,46000.0,0.002]
[1649168644661,0.054345,46007.0,46003.0,0.0102]
[1649168644768,0.208694,46014.0,46003.0,0.0102]
[1649168644914,0.17152257,46016.0,46003.0,0.0102]
[1649168645412,0.14,46016.0,46003.0,0.0102]
[1649168645514,0.14,46016.0,46002.0,0.31835102]
[1649168645515,0.30315229,46015.0,46002.0,0.31835102]
[1649168645611,0.14,46016.0,46002.0,0.31835102]
[1649168645713,0.04,46016.0,46015.0,0.2591014]
[1649168645912,0.04,46016.0,46015.0,0.3091014]
[1649168646513,0.035,46016.0,46015.0,0.3091014]
[1649168646613,0.26877689,46018.0,46015.0,0.3091014]
[1649168646714,0.00012193,46022.0,46015.0,0.3091014]
[1649168647322,0.00012193,46022.0,46016.0,0.00050104]
[1649168647814,0.29305719,46020.0,46016.0,0.00050104]
[1649168647914,0.00012193,46022.0,46016.0,0.00050104]
[1649168648403,0.00012193,46022.0,46015.0,0.3091014]
[1649168648497,0.00012193,46022.0,46016.0,0.00050104]
[1649168649553,0.00012193,46022.0,46015.0,1.3091014]
[1649168649554,0.00012193,46022.0,46018.0,0.00116563]
[1649168650607,0.054337,46020.0,46018.0,0.00116563]
[1649168653835,0.054337,46020.0,46015.0,0.507204]
[1649168653935,0.054337,46020.0,46019.0,0.00116049]
[1649168654136,0.35580037,46021.0,46019.0,0.00116049]
[1649168654238,0.25580037,46021.0,46019.0,0.00116049]
[1649168654338,0.35580037,46021.0,46019.0,0.00116049]
[1649168654439,0.10012175,46021.0,46019.0,0.00116049]
[1649168654542,0.00012175,46021.0,46019.0,0.00116049]
[1649168655041,0.00012139,46027.0,46019.0,0.00116049]
[1649168655542,0.2605217,46025.0,46019.0,0.00116049]
[1649168655642,0.2605217,46025.0,46022.0,0.30021629]
[1649168655792,0.00012139,46027.0,46022.0,0.30021629]
[1649168655893,0.00012139,46027.0,46022.0,0.35021629]
[1649168656895,0.28233681,46025.0,46022.0,0.35021629]
[1649168657246,0.28233681,46025.0,46022.0,0.05]
[1649168657347,0.28233681,46025.0,46019.0,0.00116049]
[1649168657548,0.28233681,46025.0,46015.0,0.08289786]
[1649168657950,0.28233681,46025.0,46015.0,0.3788075]
[1649168658299,0.28233681,46025.0,46024.0,0.26954433]
[1649168658402,0.42766252,46025.0,46024.0,0.26954433]
[1649168658800,0.14532571,46025.0,46024.0,0.26954433]
[1649168659257,0.14532571,46025.0,46024.0,0.31954433]
[1649168659889,0.41642772,46025.0,46024.0,0.31954433]
[1649168660186,0.41642772,46025.0,46024.0,0.05]
[1649168660389,0.14532571,46025.0,46024.0,0.05]
[1649168660488,0.14532571,46025.0,46023.0,0.05127753]
[1649168660591,0.00012263,46026.0,46023.0,0.05127753]
[1649168660889,0.25122056,46029.0,46023.0,0.05127753]
[1649168661139,0.16940572,46028.0,46023.0,0.05127753]
[1649168661389,0.28085868,46024.0,46023.0,0.05127753]
[1649168661690,0.28085868,46024.0,46023.0,0.00127753]
[1649168661788,0.44003695,46024.0,46023.0,0.00127753]
[1649168661996,0.54003695,46024.0,46023.0,0.00127753]
[1649168662190,0.38085868,46024.0,46023.0,0.00127753]
[1649168662290,0.1,46024.0,46023.0,0.00127753]
[1649168662791,0.1,46024.0,46016.0,0.28973594]
[1649168662892,1.37831995,46030.0,46016.0,0.28973594]
[1649168662992,0.00011019,46025.0,46019.0,0.00023913]
[1649168663298,0.27048384,46021.0,46019.0,0.00023913]
[1649168663945,0.27048384,46021.0,46016.0,0.33973594]
[1649168664195,0.27048384,46021.0,46018.0,0.00023914]
[1649168664295,0.13915608,46025.0,46018.0,0.00023914]
[1649168664844,0.054326,46024.0,46018.0,0.00023914]
[1649168665048,0.000126,46023.0,46018.0,0.00023914]
[1649168665195,0.000126,46023.0,46016.0,0.33973594]
[1649168665395,0.28529791,46022.0,46019.0,0.00049831]
[1649168666202,0.054332,46021.0,46019.0,0.00049831]
[1649168666399,0.054332,46021.0,46015.0,0.03434973]
[1649168666498,0.00081788,46020.0,46015.0,0.08434973]
[1649168666598,0.054332,46021.0,46018.0,0.00048857]
[1649168667003,0.054332,46021.0,46019.0,0.00145232]
[1649168667148,0.05100191,46020.0,46019.0,0.00145232]
[1649168667445,0.04,46020.0,46019.0,0.00145232]
[1649168667544,0.00230916,46018.0,46015.0,0.03289786]
[1649168667647,0.14251035,46018.0,46015.0,0.03289786]
[1649168667744,0.04,46017.0,46015.0,0.03289786]
[1649168669047,0.1880951,46017.0,46015.0,0.03289786]
[1649168669247,0.04,46017.0,46015.0,0.03289786]
[1649168669354,0.04,46017.0,46016.0,0.24693349]
[1649168669547,0.04,46017.0,46016.0,0.29693349]
[1649168670153,0.04,46017.0,46016.0,0.29193349]
[1649168672243,0.00230916,46018.0,46016.0,0.29193349]
[1649168672446,0.00230916,46018.0,46016.0,0.61269007]
[1649168672551,0.00230916,46018.0,46017.0,0.32075658]
[1649168672849,0.00230916,46018.0,46016.0,0.29193349]
[1649168672946,0.00230916,46018.0,46017.0,0.38550175]
[1649168673196,0.00230916,46018.0,46016.0,0.29193349]
[1649168673848,0.00230916,46018.0,46016.0,0.34624549]
[1649168674250,0.00230916,46018.0,46013.0,0.5]
[1649168674350,1.1,46017.0,46016.0,0.05]
[1649168674453,0.00154406,46016.0,46013.0,0.5]
[1649168674755,0.07153128,46015.0,46013.0,0.5]
[1649168674855,0.32075658,46014.0,46013.0,0.5]
[1649168675056,0.09437105,46012.0,46000.0,0.002]
[1649168675154,0.32075658,46011.0,46000.0,0.002]
[1649168675256,0.29423286,46005.0,46000.0,0.002]
[1649168675456,0.3351822,46005.0,46000.0,0.002]
[1649168675553,0.32075658,46004.0,46000.0,0.002]
[1649168675753,0.04,46003.0,46000.0,0.002]
[1649168675954,0.0110073,46001.0,46000.0,0.002]
[1649168676057,0.00116776,46003.0,46000.0,0.002]
[1649168676157,0.0510067,46001.0,46000.0,0.002]
[1649168676453,0.37176328,46001.0,46000.0,0.002]
[1649168676557,0.63387065,46001.0,46000.0,0.002]
[1649168676656,0.73387065,46001.0,46000.0,0.002]
[1649168676971,1.25,46000.0,45998.0,8.199e-05]
[1649168677057,0.32075658,45999.0,45998.0,8.199e-05]
[1649168677158,0.4604956,45999.0,45998.0,8.199e-05]
[1649168677257,0.54949081,45999.0,45998.0,8.199e-05]
[1649168678723,1.8,45998.0,45997.0,0.00200199]
[1649168678824,1.99976071,45998.0,45997.0,0.00100199]
[1649168678922,2.03976071,45998.0,45997.0,1.99e-06]
[1649168679325,1.65,45997.0,45994.0,0.004]
[1649168679429,0.09976071,45995.0,45994.0,0.004]
[1649168679526,0.42021957,45995.0,45994.0,0.004]
[1649168679624,0.46021957,45995.0,45994.0,0.004]
[1649168679726,0.56021957,45995.0,45994.0,0.004]
[1649168680528,0.5602174,45995.0,45994.0,0.004]
[1649168680729,0.46045886,45995.0,45994.0,0.004]
[1649168680832,0.56021632,45995.0,45994.0,0.004]
[1649168682355,0.54921046,45995.0,45994.0,0.004]
[1649168682559,0.53833404,45995.0,45994.0,0.004]
[1649168682758,0.21787518,45995.0,45994.0,0.004]
[1649168682862,0.11787518,45995.0,45994.0,0.004]
[1649168682957,0.43833404,45995.0,45994.0,0.004]
[1649168683158,0.53833404,45995.0,45994.0,0.004]
[1649168683765,0.21787518,45995.0,45994.0,0.004]
[1649168684364,0.11787518,45995.0,45994.0,0.004]
[1649168685368,0.11801038,45995.0,45994.0,0.004]
[1649168686737,0.0401352,45995.0,45994.0,0.004]
[1649168687742,0.0401352,45995.0,45989.0,0.07201318]
[1649168687837,0.0401352,45995.0,45990.0,0.05]
[1649168688989,0.30928441,45995.0,45990.0,0.05]
[1649168689089,0.0401352,45995.0,45990.0,0.05]
[1649168689191,0.1401352,45995.0,45990.0,0.05]
[1649168690063,0.1401352,45995.0,45990.0,0.3558115]
[1649168690162,0.1401352,45995.0,45990.0,0.05]
[1649168690262,0.0401352,45995.0,45990.0,0.05]
[1649168690968,0.0401352,45995.0,45990.0,0.05051671]
[1649168691169,0.0401352,45995.0,45990.0,0.27679562]
[1649168691370,0.0001352,45995.0,45990.0,0.27679562]
[1649168691471,0.0001352,45995.0,45991.0,0.31725063]
[1649168691576,0.0001352,45995.0,45990.0,0.27679562]
[1649168691970,0.0001352,45995.0,45990.0,0.27627891]
[1649168692471,0.0001352,45995.0,45990.0,0.27679562]